fUST/lending_fUST_20250729
["ID","MTS","AMOUNT","RATE_DAILY","PERIOD"]
[375780898,1753743051234,-801.536191,0.00023455,7]
[375780900,1753743051243,-801.536191,0.00023455,7]
[375780902,1753743051253,-151.0,0.00023455,7]
[375780904,1753743051262,-151.0,0.00023455,7]
[375780906,1753743051272,-329.231571,0.00023455,7]
[375780908,1753743051282,-329.231571,0.00023455,7]
[375780910,1753743051292,-151.0,0.00023455,7]
[375780912,1753743051301,-151.0,0.00023455,7]
[375780914,1753743051311,-151.0,0.00023455,7]
[375780916,1753743051321,-200.0,0.00023456,15]
[375780917,1753743051331,-200.0,0.00023456,15]
[375780919,1753743051340,-200.0,0.00023456,15]
[375780921,1753743051349,-200.0,0.00023456,15]
[375780923,1753743051359,-200.0,0.00023456,15]
[375780925,1753743051368,-200.0,0.00023456,15]
[375780927,1753743051378,-366.0,0.00023456,15]
[375780929,1753743051387,-1244.0,0.00023467,2]
[375780931,1753743051397,-151.0,0.00023472,7]
[375780933,1753743051407,-151.0,0.00023472,7]
[375780935,1753743051416,-151.0,0.00023472,7]
[375780937,1753743051425,-286.195717,0.00023472,7]
[375780939,1753743051435,-151.0,0.00023472,7]
[375780941,1753743051444,-151.0,0.00023472,7]
[375780943,1753743051454,-151.0,0.00023479,7]
[375780945,1753743051463,-151.0,0.00023479,7]
[375780947,1753743051473,-160.0,0.0002348,3]
[375780949,1753743051482,-596.0,0.0002348,5]
[375780951,1753743051492,-151.0,0.000235,7]
[375780953,1753743051502,-231.34820253,0.000235,3]
[375780955,1753743051512,-160.0,0.000235,3]
[375780957,1753743051522,-312.16666667,0.000235,3]
[375780959,1753743051532,-840.90880427,0.000235,3]
[375780961,1753743051542,-454.6043428,0.000235,3]
[375780963,1753743051551,-526.58819812,0.000235,3]
[375780965,1753743051562,-160.0,0.000235,3]
[375780967,1753743051573,-216.06083566,0.000235,3]
[375780969,1753743051582,-214.87999826,0.000235,3]
[375780970,1753743051592,-12634.73134317,0.000235,3]
[375780972,1753743051601,-160.0,0.000235,3]
[375780974,1753743051611,-160.0,0.000235,3]
[375780976,1753743051620,-526.44698955,0.00023507,2]
[375780978,1753743051630,-999.11,0.00023561,2]
[375780979,1753743051640,-460.0,0.00023561,2]
[375780981,1753743051649,-468.69,0.00023561,2]
[375780982,1753743051659,-460.0,0.00023561,2]
[375780984,1753743051668,-536.83,0.00023561,2]
[375780986,1753743051678,-671.35,0.00023561,2]
[375780988,1753743051687,-841.79,0.00023561,2]
[375780989,1753743051696,-460.0,0.00023561,2]
[375780990,1753743051706,-460.0,0.00023561,2]
[375780991,1753743051715,-647.16,0.00023561,2]
[375780992,1753743051725,-600.33,0.00023561,2]
[375780993,1753743051734,-1069.8,0.00023561,2]
[375780994,1753743051744,-2681.18,0.00023561,2]
[375780995,1753743051753,-500.0,0.00023562,2]
[375780996,1753743051763,-577.08,0.00023621,2]
[375780997,1753743051773,-188.47,0.0002364,2]
[375780998,1753743051782,-556.69,0.00023642,3]
[375780999,1753743051791,-151.0,0.00023699,7]
[375781000,1753743051801,-162.652108,0.00023699,7]
[375781001,1753743051811,-162.652108,0.00023699,7]
[375781002,1753743051820,-151.0,0.00023699,7]
[375781003,1753743051830,-151.0,0.00023699,7]
[375781004,1753743051839,-27111.62,0.000237,2]
[375781005,1753743051848,-239.475785,0.000237,7]
[375781006,1753743051858,-192.291012,0.000237,7]
[375781007,1753743051867,-192.291012,0.000237,7]
[375781008,1753743051877,-347.104782,0.000237,7]
[375781009,1753743051887,-577.08,0.00023721,5]
[375781010,1753743051898,-151.0,0.00023721,7]
[375781011,1753743051907,-556.69,0.00023742,6]
[375781012,1753743051916,-7070.219118,0.000238,7]
[375781013,1753743052108,-738.360882,0.000238,7]
[375781014,1753743052118,-577.08,0.00023821,2]
[375781015,1753743052129,-151.0,0.00023835,7]
[375781016,1753743052138,-999.11,0.00023835,2]
[375781017,1753743052148,-460.0,0.00023835,2]
[375781018,1753743052158,-468.69,0.00023835,2]
[375781019,1753743052168,-460.0,0.00023835,2]
[375781020,1753743052179,-536.83,0.00023835,2]
[375781021,1753743052189,-671.35,0.00023835,2]
[375781022,1753743052198,-841.79,0.00023835,2]
[375781023,1753743052208,-460.0,0.00023835,2]
[375781024,1753743052217,-195.61,0.00023835,2]
[375781025,1753743052227,-647.16,0.00023835,2]
[375781026,1753743052236,-600.33,0.00023835,2]
[375781027,1753743052246,-1069.8,0.00023835,2]
[375781028,1753743052255,-2681.18,0.00023835,2]
[375781029,1753743052265,-500.0,0.00023836,2]
[375781030,1753743052276,-556.69,0.00023842,7]
[375781031,1753743052285,-356.817036,0.00023842,7]
[375781032,1753743052295,-356.817036,0.00023842,7]
[375781033,1753743052304,-207.0,0.000239,9]
[375781034,1753743052314,-286.195717,0.000239,7]
[375781035,1753743052323,-1000.0,0.000239,2]
[375781036,1753743052332,-160.0754546,0.00023918,2]
[375781037,1753743052342,-160.0754546,0.00023918,2]
[375781038,1753743052352,-159.6986114,0.00023918,2]
[375781039,1753743052362,-577.08,0.00023921,4]
[375781040,1753743052372,-596.0,0.00023921,6]
[375781041,1753743052382,-500.0,0.00023932,2]
[375781042,1753743052391,-556.69,0.00023942,2]
[375781043,1753743052401,-150.0,0.00023949,2]
[375781045,1753743052411,-208.0,0.00023949,2]
[375781047,1753743052420,-160.0,0.00024,7]
[375781049,1753743052430,-160.0,0.00024,7]
[375781050,1753743052440,-1737.54,0.00024,7]
[375781053,1753743052451,-231.34820253,0.00024,7]
[375781054,1753743052462,-160.0,0.00024,7]
[375781056,1753743052471,-152.841085,0.00024,7]
[375781058,1753743052481,-151.0,0.00024,7]
[375781060,1753743052492,-151.0,0.00024,7]
[375781062,1753743052502,-526.58819812,0.00024,7]
[375781064,1753743052513,-216.06083566,0.00024,7]
[375781066,1753743052522,-160.0,0.00024,7]
[375781068,1753743052533,-160.0,0.00024,7]
[375781069,1753743052542,-577.12,0.00024021,4]
[375781071,1753743052552,-556.7,0.00024042,4]
[375781073,1753743052561,-500.0,0.00024068,2]
[375781075,1753743052572,-2159.0,0.00024079,2]
[375781076,1753743052581,-407.0,0.00024079,2]
[375781078,1753743052591,-424.33,0.00024079,2]
[375781080,1753743052600,-969.0,0.00024079,2]
[375781082,1753743052610,-150.0,0.00024095,2]
[375781084,1753743052620,-150.0,0.00024095,2]
[375781085,1753743052629,-150.0,0.00024095,2]
[375781087,1753743052639,-150.0,0.00024095,2]
[375781089,1753743052649,-150.821,0.00024095,2]
[375781091,1753743052658,-999.11,0.00024109,2]
[375781093,1753743052667,-275.09,0.00024109,2]
[375781095,1753743052677,-468.69,0.00024109,2]
[375781097,1753743052687,-460.0,0.00024109,2]
[375781099,1753743052696,-536.83,0.00024109,2]
[375781100,1753743052706,-671.35,0.00024109,2]
[375781102,1753743052716,-841.79,0.00024109,2]
[375781104,1753743052725,-496.03,0.00024109,2]
[375781106,1753743052734,-647.16,0.00024109,2]
[375781108,1753743052744,-600.33,0.00024109,2]
[375781110,1753743052754,-1069.8,0.00024109,2]
[375781112,1753743052763,-2681.18,0.00024109,2]
[375781114,1753743052772,-500.0,0.0002411,2]
[375781116,1753743052782,-4147.0,0.00024184,2]
[375781118,1753743052792,-151.0,0.00024184,7]
[375781120,1753743052801,-151.0,0.00024184,7]
[375781121,1753743052810,-698.37327,0.00024184,7]
[375781122,1753743052820,-698.37327,0.00024184,7]
[375781123,1753743052830,-249.441907,0.00024184,7]
[375781124,1753743052839,-249.441907,0.00024184,7]
[375781125,1753743052849,-151.0,0.00024184,7]
[375781126,1753743052858,-801.536191,0.00024184,7]
[375781127,1753743052868,-801.536191,0.00024184,7]
[375781128,1753743052879,-151.0,0.00024184,7]
[375781129,1753743052889,-155.014736,0.00024184,7]
[375781130,1753743052898,-329.231571,0.00024184,7]
[375781131,1753743052907,-329.231571,0.00024184,7]
[375781132,1753743052917,-151.0,0.00024184,7]
[375781133,1753743052927,-151.0,0.00024184,7]
[375781134,1753743052937,-151.0,0.00024184,7]
[375781135,1753743052946,-188.47,0.00024186,2]
[375781136,1753743052956,-270.4618597,0.00024188,2]
[375781137,1753743052965,-151.812409,0.00024199,6]
[375781138,1753743052975,-500.0,0.0002421,9]
[375781139,1753743052984,-151.0,0.00024321,7]
[375781140,1753743052994,-151.0,0.00024321,7]
[375781141,1753743053003,-151.0,0.00024321,7]
[375781142,1753743053013,-2200.0,0.00024321,2]
[375781143,1753743053022,-151.0,0.00024344,7]
[375781144,1753743053033,-151.0,0.00024344,7]
[375781145,1753743053042,-477.728082,0.00024361,7]
[375781146,1753743053051,-477.728082,0.00024361,7]
[375781147,1753743053061,-596.0,0.00024361,6]
[375781148,1753743053070,-528.084004,0.00024374,7]
[375781149,1753743053080,-528.084004,0.00024374,7]
[375781150,1753743053090,-162.652108,0.00024383,7]
[375781151,1753743053101,-162.652108,0.00024383,7]
[375781152,1753743053112,-151.0,0.00024383,7]
[375781153,1753743053121,-151.0,0.00024383,7]
[375781154,1753743053131,-151.0,0.00024383,7]
[375781155,1753743053140,-999.11,0.00024383,2]
[375781156,1753743053150,-151.0,0.00024383,7]
[375781157,1753743053160,-151.0,0.00024383,7]
[375781158,1753743053170,-151.0,0.00024383,7]
[375781159,1753743053181,-151.0,0.00024383,7]
[375781160,1753743053190,-456.302574,0.00024383,7]
[375781161,1753743053200,-456.302574,0.00024383,7]
[375781162,1753743053210,-275.091046,0.00024383,7]
[375781163,1753743053220,-275.091046,0.00024383,7]
[375781164,1753743053229,-468.69,0.00024383,2]
[375781165,1753743053239,-460.0,0.00024383,2]
[375781166,1753743053248,-536.83,0.00024383,2]
[375781167,1753743053258,-671.35,0.00024383,2]
[375781168,1753743053268,-841.79,0.00024383,2]
[375781169,1753743053278,-647.16,0.00024383,2]
[375781170,1753743053288,-600.33,0.00024383,2]
[375781171,1753743053298,-1069.8,0.00024383,2]
[375781172,1753743053308,-2681.18,0.00024383,2]
[375781173,1753743053317,-500.0,0.00024384,2]
[375781174,1753743053327,-152.688096,0.00024384,7]
[375781175,1753743053336,-151.812409,0.0002439,6]
[375781176,1753743053346,-1000.0,0.000244,2]
[375781177,1753743053355,-150.062554,0.000244,2]
[375781178,1753743053365,-336.0,0.00024463,2]
[375781179,1753743053375,-151.0,0.00024645,7]
[375781180,1753743053385,-151.0,0.00024645,7]
[375781181,1753743053394,-160.457064,0.00024645,7]
[375781182,1753743053404,-151.0,0.00024645,7]
[375781183,1753743053413,-151.0,0.00024645,7]
[375781184,1753743053423,-999.11,0.00024657,2]
[375781185,1753743053432,-151.0,0.00024657,7]
[375781186,1753743053442,-151.0,0.00024657,7]
[375781187,1753743053452,-151.0,0.00024657,7]
[375781188,1753743053462,-468.69,0.00024657,2]
[375781189,1753743053472,-460.0,0.00024657,2]
[375781190,1753743053483,-536.83,0.00024657,2]
[375781191,1753743053492,-671.35,0.00024657,2]
[375781192,1753743053502,-841.79,0.00024657,2]
[375781193,1753743053512,-647.16,0.00024657,2]
[375781194,1753743053522,-600.33,0.00024657,2]
[375781195,1753743053533,-1069.8,0.00024657,2]
[375781196,1753743053543,-2681.18,0.00024657,2]
[375781197,1753743053554,-288.21366922,0.00024658,2]
[375781198,1753743053564,-500.0,0.00024658,2]
[375781199,1753743053574,-151.0,0.00024658,2]
[375781200,1753743053584,-440.0,0.00024658,2]
[375781201,1753743053594,-175.130423,0.00024681,7]
[375781202,1753743053604,-151.0,0.00024681,7]
[375781203,1753743053614,-235.93622,0.00024681,7]
[375781204,1753743053623,-235.93622,0.00024681,7]
[375781205,1753743053633,-151.0,0.00024681,7]
[375781206,1753743053643,-151.0,0.00024681,7]
[375781207,1753743053653,-188.47,0.00024733,2]
[375781208,1753743053663,-4147.0,0.00024745,2]
[375781209,1753743053674,-2000.0,0.000248,2]
[375781210,1753743053684,-2000.0,0.000248,2]
[375781211,1753743053694,-150.0,0.000248,2]
[375781212,1753743053704,-27111.62,0.000248,2]
[375781213,1753743053713,-151.0,0.000248,7]
[375781214,1753743053722,-151.0,0.000248,7]
[375781215,1753743053733,-162.652108,0.000248,7]
[375781216,1753743053742,-162.652108,0.000248,7]
[375781217,1753743053752,-151.0,0.000248,7]
[375781218,1753743053762,-151.0,0.000248,7]
[375781219,1753743053773,-151.0,0.000248,7]
[375781220,1753743053784,-151.0,0.000248,7]
[375781221,1753743053795,-151.0,0.000248,7]
[375781222,1753743053806,-151.0,0.000248,7]
[375781223,1753743053817,-347.104782,0.000248,7]
[375781224,1753743053827,-151.0,0.000248,7]
[375781225,1753743053836,-151.0,0.000248,7]
[375781226,1753743053846,-151.0,0.000248,7]
[375781227,1753743053856,-151.0,0.000248,7]
[375781228,1753743053866,-151.0,0.000248,7]
[375781229,1753743053876,-151.0,0.000248,7]
[375781230,1753743053885,-151.0,0.000248,7]
[375781231,1753743053895,-151.0,0.000248,7]
[375781232,1753743053904,-151.0,0.000248,7]
[375781233,1753743053914,-456.302574,0.000248,7]
[375781234,1753743053923,-456.302574,0.000248,7]
[375781235,1753743053934,-235.93622,0.000248,7]
[375781236,1753743053943,-235.93622,0.000248,7]
[375781237,1753743053952,-275.091046,0.000248,7]
[375781238,1753743053962,-275.091046,0.000248,7]
[375781239,1753743053972,-151.0,0.000248,7]
[375781240,1753743053982,-241.610577,0.000248,7]
[375781241,1753743053992,-151.0,0.000248,7]
[375781242,1753743054002,-249.441907,0.000248,7]
[375781243,1753743054012,-249.441907,0.000248,7]
[375781244,1753743054022,-200.560759,0.000248,7]
[375781245,1753743054032,-801.536191,0.000248,7]
[375781246,1753743054041,-801.536191,0.000248,7]
[375781247,1753743054051,-151.0,0.000248,7]
[375781248,1753743054060,-329.231571,0.000248,7]
[375781249,1753743054070,-329.231571,0.000248,7]
[375781250,1753743054079,-6190.161067,0.000248,2]
[375781251,1753743054089,-2080.47519736,0.000248,2]
[375781252,1753743054099,-151.0,0.000248,7]
[375781253,1753743054112,-151.0,0.000248,7]
[375781254,1753743054122,-151.0,0.000248,7]
[375781255,1753743054131,-526.44698955,0.000248,2]
[375781256,1753743054140,-437.74060536,0.000248,2]
[375781257,1753743054151,-596.0,0.00024802,6]
[375781258,1753743054160,-2054.0,0.00024851,2]
[375781259,1753743054171,-200.0,0.00024899,2]
[375781260,1753743054181,-49381.50782039,0.000249,14]
[375781261,1753743054191,-712.59,0.000249,7]
[375781262,1753743054201,-151.0,0.000249,7]
[375781263,1753743054211,-294.453064,0.000249,7]
[375781264,1753743054220,-152.931538,0.000249,7]
[375781265,1753743054231,-151.0,0.000249,7]
[375781266,1753743054241,-151.0,0.000249,7]
[375781267,1753743054251,-162.652108,0.000249,7]
[375781268,1753743054261,-162.652108,0.000249,7]
[375781269,1753743054271,-151.0,0.000249,7]
[375781270,1753743054282,-239.475785,0.000249,7]
[375781271,1753743054292,-239.475785,0.000249,7]
[375781272,1753743054302,-151.0,0.000249,7]
[375781273,1753743054312,-151.0,0.000249,7]
[375781274,1753743054322,-151.0,0.000249,7]
[375781275,1753743054332,-151.0,0.000249,7]
[375781276,1753743054342,-151.0,0.000249,7]
[375781277,1753743054352,-192.291012,0.000249,7]
[375781278,1753743054362,-192.291012,0.000249,7]
[375781279,1753743054372,-192.291012,0.000249,7]
[375781280,1753743054382,-192.291012,0.000249,7]
[375781281,1753743054394,-151.0,0.000249,7]
[375781282,1753743054404,-151.0,0.000249,7]
[375781283,1753743054413,-286.195717,0.000249,7]
[375781284,1753743054423,-286.195717,0.000249,7]
[375781285,1753743054433,-151.0,0.000249,7]
[375781286,1753743054442,-280.436499,0.000249,7]
[375781287,1753743054452,-151.0,0.000249,7]
[375781288,1753743054462,-151.0,0.000249,7]
[375781289,1753743054471,-347.104782,0.000249,7]
[375781290,1753743054481,-356.817036,0.000249,7]
[375781291,1753743054491,-356.817036,0.000249,7]
[375781292,1753743054500,-356.817036,0.000249,7]
[375781293,1753743054510,-356.817036,0.000249,7]
[375781294,1753743054520,-151.0,0.000249,7]
[375781295,1753743054531,-151.0,0.000249,7]
[375781296,1753743054540,-151.0,0.000249,7]
[375781297,1753743054550,-151.0,0.000249,7]
[375781298,1753743054674,-151.0,0.000249,7]
[375781299,1753743054685,-151.0,0.000249,7]
[375781300,1753743054695,-151.0,0.000249,7]
[375781301,1753743054705,-151.0,0.000249,7]
[375781302,1753743054715,-151.0,0.000249,7]
[375781303,1753743054724,-456.302574,0.000249,7]
[375781304,1753743054734,-456.302574,0.000249,7]
[375781305,1753743054743,-151.0,0.000249,7]
[375781306,1753743054752,-151.0,0.000249,7]
[375781307,1753743054762,-151.0,0.000249,7]
[375781308,1753743054771,-235.93622,0.000249,7]
[375781309,1753743054781,-151.0,0.000249,7]
[375781310,1753743054791,-235.93622,0.000249,7]
[375781311,1753743054800,-275.091046,0.000249,7]
[375781312,1753743054810,-275.091046,0.000249,7]
[375781313,1753743054819,-528.084004,0.000249,7]
[375781314,1753743054829,-528.084004,0.000249,7]
[375781315,1753743054838,-528.084004,0.000249,7]
[375781316,1753743054848,-528.084004,0.000249,7]
[375781317,1753743054857,-151.0,0.000249,7]
[375781318,1753743054867,-477.728082,0.000249,7]
[375781319,1753743054877,-477.728082,0.000249,7]
[375781320,1753743054886,-477.728082,0.000249,7]
[375781321,1753743054896,-477.728082,0.000249,7]
[375781322,1753743054905,-151.0,0.000249,7]
[375781323,1753743054915,-698.37327,0.000249,7]
[375781324,1753743054924,-698.37327,0.000249,7]
[375781325,1753743054934,-698.37327,0.000249,7]
[375781326,1753743054944,-698.37327,0.000249,7]
[375781327,1753743054953,-249.441907,0.000249,7]
[375781328,1753743054962,-249.441907,0.000249,7]
[375781329,1753743054972,-801.536191,0.000249,7]
[375781330,1753743054982,-801.536191,0.000249,7]
[375781331,1753743054991,-151.0,0.000249,7]
[375781332,1753743055001,-329.231571,0.000249,7]
[375781333,1753743055010,-329.231571,0.000249,7]
[375781334,1753743055019,-64497.54749606,0.000249,2]
[375781335,1753743055077,-463.49354728,0.0001999,2]
[375781336,1753743055089,-99536.50645272,0.0001999,2]
[375781337,1753743055099,-279.980965,0.00022486,7]
[375781338,1753743055111,-151.0,0.00023455,7]
[375781339,1753743055121,-151.0,0.00024184,7]
[375781340,1753743055130,-151.0,0.000248,7]
[375781341,1753743055140,-8809.09185141,0.000249,2]
[375781342,1753743055152,-6597.54280303,0.000249,2]
[375781343,1753743055165,-106341.9822095,0.000249,2]
[375781344,1753743055175,-151.0,0.000249,7]
[375781345,1753743055186,-151.0,0.000249,7]
[375781346,1753743055196,-276.228045,0.000249,7]
[375781347,1753743055206,-151.0,0.000249,7]
[375781348,1753743055215,-347.20436139,0.0002493,2]
[375781349,1753743055224,-999.11,0.00024931,2]
[375781350,1753743055233,-468.69,0.00024931,2]
[375781351,1753743055242,-373.05,0.00024931,2]
[375781352,1753743055252,-536.83,0.00024931,2]
[375781353,1753743055262,-671.35,0.00024931,2]
[375781354,1753743055271,-841.79,0.00024931,2]
[375781355,1753743055283,-647.16,0.00024931,2]
[375781356,1753743055293,-600.33,0.00024931,2]
[375781357,1753743055304,-1069.8,0.00024931,2]
[375781358,1753743055314,-2681.18,0.00024931,2]
[375781359,1753743055323,-500.0,0.00024932,2]
[375781360,1753743055334,-440.0,0.00024932,2]
[375781361,1753743055344,-437.74060528,0.00024964,2]
[375781362,1753743055354,-500.0,0.00025028,2]
[375781363,1753743055364,-7808.58,0.000251,7]
[375781364,1753743055374,-4147.0,0.00025112,2]
[375781365,1753743055383,-437.74060528,0.00025127,2]
[375781366,1753743055393,-373.0,0.00025203,2]
[375781367,1753743055402,-999.11,0.00025205,2]
[375781368,1753743055412,-468.69,0.00025205,2]
[375781369,1753743055421,-536.83,0.00025205,2]
[375781370,1753743055431,-671.35,0.00025205,2]
[375781371,1753743055440,-841.79,0.00025205,2]
[375781372,1753743055450,-647.16,0.00025205,2]
[375781373,1753743055460,-600.33,0.00025205,2]
[375781374,1753743055470,-1069.8,0.00025205,2]
[375781375,1753743055479,-2681.18,0.00025205,2]
[375781376,1753743055489,-500.0,0.00025206,2]
[375781377,1753743055499,-440.0,0.00025206,2]
[375781378,1753743055509,-270.4618597,0.0002523,2]
[375781379,1753743055519,-596.0,0.00025243,7]
[375781380,1753743055530,-188.47,0.00025279,7]
[375781381,1753743055540,-154.2601571,0.00025288,2]
[375781382,1753743055550,-153.0,0.00025288,2]
[375781383,1753743055559,-153.0,0.00025288,2]
[375781384,1753743055569,-153.0,0.00025288,2]
[375781385,1753743055579,-153.0,0.00025288,2]
[375781386,1753743055588,-437.74060528,0.00025291,2]
[375781387,1753743055597,-500.0,0.0002538,5]
[375781388,1753743055608,-500.0,0.0002538,5]
[375781389,1753743055617,-500.0,0.0002538,5]
[375781390,1753743055626,-500.0,0.0002538,5]
[375781391,1753743055636,-500.0,0.0002538,5]
[375781392,1753743055645,-1737.54,0.000254,7]
[375781393,1753743055655,-999.16129933,0.00025479,2]
[375781394,1753743055664,-468.83,0.00025479,2]
[375781395,1753743055674,-537.01,0.00025479,2]
[375781396,1753743055683,-671.52,0.00025479,2]
[375781397,1753743055693,-841.97,0.00025479,2]
[375781398,1753743055702,-647.23,0.00025479,2]
[375781399,1753743055712,-600.51387711,0.00025479,2]
[375781400,1753743055722,-1069.97725253,0.00025479,2]
[375781401,1753743055732,-2681.33377105,0.00025479,2]
[375781402,1753743055741,-500.0,0.0002548,2]
[375781403,1753743055751,-440.0,0.0002548,2]
[375781404,1753743055760,-207.0,0.0002552,14]
[375781405,1753743055770,-150.0,0.00025641,2]
[375781406,1753743055780,-596.0,0.00025683,7]
[375781407,1753743055790,-483.31572602,0.00025754,2]
[375781408,1753743055799,-440.0,0.00025754,2]
[375781409,1753743055809,-200.0,0.00025757,15]
[375781410,1753743055819,-200.0,0.00025757,15]
[375781411,1753743055829,-200.0,0.00025757,15]
[375781412,1753743055838,-200.0,0.00025757,15]
[375781413,1753743055848,-200.0,0.00025757,15]
[375781414,1753743055857,-200.0,0.00025757,15]
[375781415,1753743055867,-200.0,0.00025757,15]
[375781416,1753743055877,-200.0,0.00025757,15]
[375781417,1753743055887,-200.0,0.00025757,15]
[375781418,1753743055898,-394.0,0.00025757,15]
[375781419,1753743055907,-500.0,0.0002578,5]
[375781420,1753743055919,-2000.0,0.000258,2]
[375781421,1753743055928,-2000.0,0.000258,2]
[375781422,1753743055937,-188.47,0.00025825,7]
[375781423,1753743055947,-27111.62,0.000259,2]
[375781424,1753743055957,-440.0,0.00026028,2]
[375781425,1753743055967,-596.0,0.00026124,7]
[375781426,1753743055976,-1444.0,0.00026137,120]
[375781427,1753743055987,-190.74583981,0.0002616,2]
[375781428,1753743055996,-754.31,0.00026178,7]
[375781429,1753743056006,-1000.0,0.000262,3]
[375781430,1753743056015,-298.12870497,0.000262,7]
[375781431,1753743056025,-246.0,0.000262,7]
[375781432,1753743056036,-163.0,0.000262,120]
[375781433,1753743056045,-183.72488545,0.00026262,2]
[375781434,1753743056055,-270.4618597,0.00026272,2]
[375781435,1753743056064,-754.31,0.00026278,5]
[375781436,1753743056073,-1000.0,0.000263,3]
[375781437,1753743056083,-712.59,0.000263,7]
[375781438,1753743056092,-1699.64,0.000263,120]
[375781439,1753743056104,-440.0,0.00026302,2]
[375781440,1753743056114,-151.28821919,0.00026318,2]
[375781441,1753743056123,-151.0,0.00026353,7]
[375781442,1753743056133,-151.0,0.00026353,7]
[375781443,1753743056143,-151.0,0.00026353,7]
[375781444,1753743056153,-151.0,0.00026353,7]
[375781445,1753743056163,-151.0,0.00026353,7]
[375781446,1753743056172,-151.0,0.00026353,7]
[375781447,1753743056183,-151.0,0.00026353,7]
[375781448,1753743056192,-151.0,0.00026353,7]
[375781449,1753743056201,-151.0,0.00026353,7]
[375781450,1753743056210,-151.0,0.00026353,7]
[375781451,1753743056220,-151.0,0.00026353,7]
[375781452,1753743056230,-151.0,0.00026353,7]
[375781453,1753743056239,-151.0,0.00026353,7]
[375781454,1753743056249,-151.0,0.00026353,7]
[375781455,1753743056258,-151.0,0.00026353,7]
[375781456,1753743056268,-1500.0,0.00026353,28]
[375781457,1753743056278,-1500.0,0.00026353,28]
[375781458,1753743056287,-1500.0,0.00026353,28]
[375781459,1753743056296,-1500.0,0.00026353,28]
[375781460,1753743056306,-1500.0,0.00026353,28]
[375781461,1753743056316,-1500.0,0.00026353,28]
[375781462,1753743056326,-1500.0,0.00026353,28]
[375781463,1753743056335,-1500.0,0.00026353,28]
[375781464,1753743056345,-410.385746,0.00026353,28]
[375781465,1753743056355,-151.0,0.00026353,7]
[375781466,1753743056365,-151.0,0.00026353,7]
[375781467,1753743056374,-151.0,0.00026353,7]
[375781468,1753743056384,-151.0,0.00026353,7]
[375781469,1753743056393,-260.912444,0.00026353,7]
[375781470,1753743056402,-151.0,0.00026353,7]
[375781471,1753743056412,-151.0,0.00026353,7]
[375781472,1753743056421,-151.0,0.00026353,7]
[375781473,1753743056431,-151.0,0.00026353,7]
[375781474,1753743056440,-151.0,0.00026353,7]
[375781475,1753743056450,-151.0,0.00026353,7]
[375781476,1753743056459,-236.351616,0.00026353,7]